bitfinex/quotes_SOLUSD_20250806
["timestamp","ask_amount","ask_price","bid_price","bid_amount"]
[1754495033809,4.03487279,168.34,168.33,64.0512504]
[1754495034878,4.03487279,168.34,168.33,42.72]
[1754495035798,4.03487279,168.34,168.33,48.66071169]
[1754495036607,4.03487279,168.34,168.33,42.72]
[1754495037118,4.03487279,168.34,168.33,48.66071169]
[1754495037505,4.03487279,168.34,168.33,42.72]
[1754495039026,4.03487279,168.34,168.33,49.38071169]
[1754495040288,4.03487279,168.34,168.33,42.72]
[1754495040812,4.03487279,168.34,168.33,48.66071169]
[1754495040999,4.03487279,168.34,168.33,49.38071169]
[1754495041400,4.03487279,168.34,168.33,48.66071169]
[1754495041807,4.03487279,168.34,168.33,42.72]
[1754495042236,4.72487279,168.34,168.33,42.72]
[1754495042392,10.90965439,168.34,168.33,42.7]
[1754495042715,10.90965439,168.34,168.31,6.00139888]
[1754495042716,10.90965439,168.34,168.32,42.7]
[1754495042938,36.87965439,168.33,168.31,0.06]
[1754495043092,10.18965439,168.32,168.3,0.06]
[1754495043288,42.37443599,168.31,168.22,5.94437024]
[1754495043521,6.1847816,168.26,168.23,48.70413361]
[1754495043725,10.18965439,168.26,168.24,5.94367239]
[1754495043937,10.18965439,168.26,168.23,42.76]
[1754495044233,10.18965439,168.26,168.23,0.06]
[1754495044392,10.18965439,168.26,168.24,5.94386223]
[1754495044589,4.00487279,168.26,168.23,6.00414735]
[1754495045691,36.18965439,168.26,168.23,6.00414735]
[1754495045891,36.87965439,168.26,168.23,6.00414735]
[1754495046092,36.18965439,168.26,168.23,6.00414735]
[1754495046533,10.18965439,168.26,168.23,6.00414735]
[1754495046717,4.00487279,168.27,168.25,0.76]
[1754495046897,4.00487279,168.28,168.26,6.6428582]
[1754495047097,4.00487279,168.27,168.26,6.6428582]
[1754495047301,4.00487279,168.29,168.26,5.9428582]
[1754495047530,4.00487279,168.28,168.27,0.7]
[1754495047835,4.00487279,168.28,168.26,5.9428582]
[1754495048000,4.00487279,168.27,168.26,5.9428582]
[1754495048202,4.00487279,168.28,168.26,5.9428582]
[1754495049431,4.00487279,168.29,168.27,0.7]
[1754495049819,4.00487279,168.29,168.26,5.9428582]
[1754495050005,4.00487279,168.29,168.26,6.6428582]
[1754495050327,4.00487279,168.29,168.27,0.7]
[1754495050534,149.8,168.28,168.26,12.1276398]
[1754495050833,5.69594751,168.33,168.26,12.1276398]
[1754495050834,5.00594751,168.33,168.27,21.57532031]
[1754495051010,0.03,168.35,168.31,6.1847816]
[1754495051328,4.022302,168.34,168.32,5.94106463]
[1754495051703,0.03,168.34,168.32,5.94106463]
[1754495052219,4.022302,168.34,168.32,6.64106463]
[1754495052420,0.03,168.34,168.32,6.64106463]
[1754495052950,4.022302,168.34,168.32,5.94106463]
[1754495053234,0.03,168.34,168.31,48.64134609]
[1754495053930,4.022302,168.34,168.31,48.64134609]
[1754495054248,4.022302,168.34,168.3,5.94166994]
[1754495054456,4.022302,168.34,168.29,42.68]
[1754495054457,6.1847816,168.32,168.29,42.68]
[1754495054634,6.1847816,168.32,168.28,48.62247682]
[1754495055132,6.8747816,168.32,168.28,49.32247682]
[1754495055324,3.992302,168.32,168.28,42.68]
[1754495055529,0.69,168.31,168.28,42.68]
[1754495055832,3.992302,168.32,168.29,0.7]
[1754495056032,3.992302,168.33,168.3,0.7]
[1754495056246,3.992302,168.33,168.28,49.32236486]
[1754495056447,149.8,168.32,168.29,0.7]
[1754495056840,149.8,168.32,168.29,6.64207696]
[1754495057344,150.49,168.32,168.29,5.94207696]
[1754495057534,149.8,168.32,168.29,6.64207696]
[1754495057729,149.8,168.32,168.29,5.94207696]
[1754495057931,150.49,168.32,168.29,5.94207696]
[1754495058442,149.8,168.31,168.3,6.8847816]
[1754495059051,149.8,168.31,168.3,6.64177064]
[1754495059355,149.8,168.31,168.3,12.82655224]
[1754495060756,149.8,168.31,168.3,5.94177064]
[1754495062554,149.8,168.31,168.29,6.00206028]
[1754495062854,149.8,168.31,168.3,0.7]
[1754495063060,149.8,168.31,168.3,6.64177064]
[1754495063559,149.8,168.31,168.3,5.94177064]
[1754495063759,149.8,168.31,168.29,6.00207356]
[1754495064055,150.49,168.3,168.29,0.06]
[1754495064266,0.69,168.3,168.29,0.06]
[1754495064433,6.8747816,168.31,168.29,0.06]
[1754495065239,6.1847816,168.31,168.29,0.06]
[1754495065475,10.20745384,168.32,168.29,0.06]
[1754495065863,10.89745384,168.32,168.29,0.06]
[1754495066647,6.8747816,168.31,168.29,0.06]
[1754495066858,10.86745384,168.31,168.29,0.06]
[1754495067074,10.17745384,168.31,168.29,0.06]
[1754495067251,0.69,168.3,168.29,0.06]
[1754495067985,36.86745384,168.3,168.29,0.06]
[1754495069055,29.99267224,168.3,168.29,0.06]
[1754495069268,3.99267224,168.3,168.29,0.06]
[1754495069470,4.02267224,168.32,168.29,0.76]
[1754495069668,4.02267224,168.32,168.3,0.7]
[1754495069850,0.03,168.32,168.3,5.9416189]
[1754495070050,0.03,168.32,168.31,6.8847816]
[1754495070352,0.03,168.32,168.3,12.8264005]
[1754495070847,0.03,168.32,168.31,0.7]
[1754495071048,0.03,168.32,168.31,22.27532031]
[1754495071865,0.03,168.32,168.31,22.03195633]
[1754495072065,0.03,168.32,168.31,28.21673793]
[1754495073582,0.03,168.32,168.31,27.51673793]
[1754495074160,0.03,168.32,168.31,28.17673793]
[1754495076180,0.03,168.32,168.31,70.17673793]
[1754495076394,0.03,168.32,168.31,70.83673793]
[1754495078456,0.03,168.32,168.31,64.65195633]
[1754495078680,0.03,168.32,168.31,64.61099717]
[1754495078901,0.03,168.32,168.31,64.09315874]
[1754495079182,0.03,168.32,168.31,70.83673793]
[1754495081557,0.03,168.34,168.32,15.39053871]
[1754495081862,0.03,168.34,168.33,63.93099717]
[1754495082177,0.03,168.34,168.33,64.59099717]
[1754495082880,0.03,168.34,168.33,70.53170886]
[1754495083055,0.03,168.35,168.34,15.39053871]
[1754495083261,0.03,168.35,168.34,22.23532031]
[1754495084681,0.03,168.35,168.34,28.1756791]
[1754495086569,0.03,168.36,168.35,21.33054465]
[1754495086875,1e-08,168.36,168.35,70.79532625]
[1754495088662,1e-08,168.39,168.37,0.28432314]
[1754495088963,1e-08,168.39,168.38,64.19532031]
[1754495089586,1e-08,168.39,168.38,64.85532031]
[1754495090065,1e-08,168.39,168.38,70.79426792]
[1754495090893,1e-08,168.39,168.38,63.94948632]
[1754495091076,1e-08,168.39,168.38,70.13426792]
[1754495091282,1e-08,168.39,168.38,63.94948632]
[1754495091587,1e-08,168.39,168.38,70.13426792]
[1754495092406,0.68000001,168.39,168.38,27.22994478]
[1754495092587,0.68000001,168.39,168.38,57.70621557]
[1754495093287,0.68000001,168.39,168.38,63.64516318]
[1754495093474,0.68000001,168.39,168.38,69.82994478]
[1754495093678,1e-08,168.39,168.38,69.82994478]
[1754495095006,1e-08,168.39,168.38,27.22994478]
[1754495095203,1e-08,168.39,168.38,69.82994478]
[1754495095385,0.68000001,168.39,168.38,63.89099717]
[1754495095580,0.68000001,168.39,168.38,69.82994478]
[1754495095988,0.68000001,168.39,168.38,63.89099717]
[1754495096310,1e-08,168.39,168.38,69.82994478]
[1754495097378,1e-08,168.39,168.38,70.77426792]
[1754495100808,0.03,168.43,168.41,5.93788967]
[1754495100996,0.03,168.43,168.42,64.15532031]
[1754495101195,0.03,168.45,168.44,0.28432314]
[1754495101417,0.03,168.45,168.44,64.15532031]
[1754495101792,0.03,168.45,168.44,57.97053871]
[1754495102116,0.03,168.45,168.44,64.15532031]
[1754495102313,0.71,168.45,168.44,15.10621557]
[1754495102514,0.71,168.45,168.44,57.68621557]
[1754495102697,0.71,168.45,168.44,42.58]
[1754495103225,6.8947816,168.45,168.42,42.58]
[1754495103527,6.1847816,168.43,168.36,6.1847816]
[1754495103723,6.1847816,168.37,168.32,12.12574524]
[1754495104013,6.8647816,168.36,168.31,5.94139565]
[1754495104216,0.68,168.35,168.32,15.39053871]
[1754495104422,6.1847816,168.37,168.32,48.7647816]
[1754495104716,6.1847816,168.37,168.33,15.10621557]
[1754495104917,6.8647816,168.36,168.33,57.66621557]
[1754495105218,0.68,168.35,168.33,57.66621557]
[1754495106312,0.68,168.34,168.31,15.10621557]
[1754495106520,0.68,168.33,168.32,42.56]
[1754495107229,6.8647816,168.33,168.31,42.56]
[1754495107607,0.68,168.33,168.31,42.56]
[1754495108704,6.8647816,168.36,168.31,48.7447816]
[1754495108940,26.0,168.37,168.33,21.29099717]
[1754495109120,26.0,168.37,168.34,42.56]
[1754495109730,6.8647816,168.38,168.34,42.56]
[1754495110565,0.68,168.37,168.34,42.56]
[1754495111226,32.8647816,168.37,168.35,42.56]
[1754495111612,32.8647816,168.37,168.34,42.56]
[1754495111934,32.1847816,168.37,168.34,42.56]
[1754495112139,6.1847816,168.35,168.3,0.06]
[1754495112435,0.68,168.36,168.3,0.06]
[1754495112436,6.1847816,168.31,168.3,0.06]
[1754495112643,6.8647816,168.31,168.3,0.06]
[1754495113913,6.1847816,168.31,168.3,0.06]
[1754495114233,32.1847816,168.32,168.3,0.06]
[1754495114926,26.0,168.32,168.3,0.06]
[1754495115124,32.1847816,168.32,168.3,0.06]
[1754495115432,32.8647816,168.32,168.3,0.06]
[1754495115819,26.0,168.32,168.3,0.06]
[1754495116011,26.0,168.33,168.3,0.78]
[1754495116407,26.0,168.33,168.3,0.06]
[1754495116609,26.68,168.33,168.3,0.06]
[1754495117921,32.8647816,168.33,168.3,0.06]
[1754495118122,6.1847816,168.31,168.3,0.06]
[1754495118521,6.8647816,168.31,168.3,0.06]
[1754495120038,10.83386422,168.31,168.3,0.06]
[1754495120234,10.15386422,168.31,168.3,0.06]
[1754495120550,10.15386422,168.32,168.3,0.06]
[1754495120739,36.15386422,168.33,168.3,0.06]
[1754495121036,26.0,168.33,168.3,0.78]
[1754495121516,32.1847816,168.33,168.3,0.78]
[1754495121723,6.1847816,168.32,168.3,0.06]
[1754495122233,6.8647816,168.32,168.3,0.06]
[1754495122617,6.1847816,168.32,168.3,0.06]
[1754495124134,6.8647816,168.32,168.3,0.06]
[1754495125028,6.1847816,168.32,168.3,0.06]
[1754495125231,32.1847816,168.32,168.3,0.06]
[1754495126629,26.0,168.32,168.3,0.06]
[1754495127133,32.1847816,168.32,168.3,0.06]
[1754495127734,5.93989697,168.36,168.3,0.06]
[1754495127927,6.1847816,168.33,168.3,0.78]
[1754495128133,6.1847816,168.33,168.3,0.06]
[1754495128644,74.49989697,168.36,168.3,0.06]
[1754495128645,6.8647816,168.32,168.3,0.06]
[1754495129038,6.1847816,168.32,168.3,0.06]
[1754495129339,6.8647816,168.32,168.3,0.06]
[1754495129645,5.93824228,168.4,168.32,15.10621557]
[1754495129940,10.82516611,168.41,168.35,6.1847816]
[1754495130131,6.8647816,168.41,168.35,6.1847816]
[1754495130328,26.0,168.4,168.34,27.95132298]
[1754495130528,6.1847816,168.42,168.37,6.1847816]
[1754495130841,6.1847816,168.39,168.35,15.10621557]
[1754495131027,0.68,168.39,168.35,15.10621557]
[1754495131231,6.1847816,168.4,168.35,22.01099717]
[1754495131539,0.68,168.39,168.35,15.10621557]
[1754495132119,0.68,168.39,168.34,21.57532031]
[1754495132338,0.68,168.39,168.34,22.29532031]
[1754495132523,32.1847816,168.4,168.35,6.1847816]
[1754495132728,32.8647816,168.4,168.35,0.72]
[1754495132927,38.83302823,168.4,168.35,0.72]
[1754495133752,0.71,168.39,168.35,0.72]
[1754495134329,6.8947816,168.39,168.34,21.29099717]
[1754495134551,6.8947816,168.39,168.34,21.96099717]
[1754495134746,6.8947816,168.39,168.34,15.77621557]
[1754495134960,0.71,168.38,168.34,21.29099717]
[1754495135127,0.71,168.38,168.34,21.96099717]
[1754495135327,0.71,168.38,168.34,15.77621557]
[1754495135566,6.8947816,168.38,168.34,15.77621557]
[1754495135744,6.8947816,168.38,168.34,0.67]
[1754495136057,6.1847816,168.36,168.33,42.54]
[1754495136228,149.8,168.35,168.33,42.54]
[1754495137153,156.6947816,168.35,168.33,15.10621557]
[1754495137340,156.6947816,168.34,168.3,0.06]
[1754495137547,6.1847816,168.32,168.3,0.06]
[1754495138232,6.1847816,168.31,168.3,0.06]
[1754495139739,12.83619922,168.31,168.3,0.06]
[1754495140353,61.56098082,168.31,168.3,0.06]
[1754495140539,65.53437515,168.31,168.3,0.06]
[1754495140732,59.34959355,168.31,168.3,0.06]
[1754495143346,59.34959355,168.31,168.28,0.06]
[1754495143347,26.0,168.29,168.28,0.06]
[1754495143546,36.15817593,168.29,168.28,0.06]
[1754495143743,36.86817593,168.29,168.28,0.06]
[1754495144060,36.15817593,168.29,168.28,0.06]
[1754495144229,78.69817593,168.29,168.28,0.06]
[1754495144429,72.51339433,168.29,168.28,0.06]
[1754495144630,74.7247816,168.29,168.28,0.06]
[1754495144936,78.69341508,168.29,168.28,0.06]
[1754495145335,79.40341508,168.29,168.28,0.06]
[1754495145647,85.34553879,168.29,168.28,0.06]
[1754495145846,78.69341508,168.29,168.28,0.06]
[1754495146155,19.81723915,168.33,168.28,0.06]
[1754495146156,6.1847816,168.3,168.28,0.73]
[1754495146359,149.8,168.29,168.28,0.06]
[1754495146561,155.9847816,168.29,168.28,0.06]
[1754495147059,160.66746773,168.29,168.28,0.06]
[1754495147235,159.95746773,168.29,168.28,0.06]
[1754495148647,160.66746773,168.29,168.28,0.06]
[1754495148953,159.95746773,168.29,168.28,0.06]
[1754495149142,160.66746773,168.29,168.28,0.06]
[1754495149546,166.60959144,168.29,168.28,0.06]
[1754495150163,154.48268613,168.29,168.28,0.06]
[1754495150349,160.66746773,168.29,168.28,0.06]
[1754495151043,149.74,168.27,168.25,0.06]
[1754495151244,3.977657,168.26,168.25,0.06]
[1754495151651,10.1624386,168.26,168.25,0.06]
[1754495151962,3.977657,168.26,168.25,0.73]
[1754495152335,149.74,168.27,168.26,15.10621557]
[1754495152537,149.74,168.27,168.26,15.77621557]
[1754495153047,149.74,168.27,168.26,21.71939873]
[1754495155246,149.74,168.27,168.26,27.90418033]
[1754495157064,149.74,168.27,168.26,21.71939873]
[1754495157367,149.74,168.27,168.26,15.10621557]
[1754495157774,149.74,168.27,168.26,15.77621557]
[1754495158142,149.74,168.27,168.26,15.10621557]
[1754495159763,149.74,168.27,168.26,21.04939873]
[1754495159964,149.74,168.27,168.26,21.71939873]
[1754495161458,149.74,168.27,168.26,15.77621557]
[1754495161858,149.74,168.27,168.26,21.71939873]
[1754495162365,149.74,168.27,168.26,15.10621557]
[1754495162972,6.1847816,168.28,168.25,0.06]
[1754495163165,6.8647816,168.28,168.25,15.16621557]
[1754495163858,6.1847816,168.26,168.25,15.16621557]
[1754495164569,6.1847816,168.26,168.25,0.06]
[1754495164880,6.8647816,168.26,168.25,0.06]
[1754495165071,10.84881439,168.26,168.25,0.06]
[1754495166458,6.8647816,168.26,168.25,0.06]
[1754495166679,10.84881439,168.26,168.25,0.06]
[1754495167284,4.66403279,168.26,168.25,0.06]
[1754495167585,6.8647816,168.26,168.25,0.06]
[1754495167787,10.84881439,168.26,168.25,0.06]
[1754495167993,42.79199755,168.26,168.25,0.06]
[1754495168359,85.29199755,168.26,168.25,0.06]
[1754495169980,36.16881439,168.26,168.25,0.06]
[1754495170186,42.79199755,168.26,168.25,0.06]
[1754495172384,16.79199755,168.26,168.25,0.06]
[1754495172794,26.0,168.24,168.23,0.06]
[1754495173104,83.64612937,168.24,168.23,0.06]
[1754495173290,90.27001905,168.24,168.23,0.06]
[1754495174293,6.1847816,168.2,168.19,0.1]
[1754495174600,10.16881439,168.2,168.19,0.1]
[1754495175290,22.9788992,168.2,168.19,0.1]
[1754495175884,16.7941176,168.2,168.19,0.1]
[1754495176275,26.0,168.18,168.17,0.1]
[1754495176493,78.66881439,168.18,168.17,0.1]
[1754495176795,79.34881439,168.18,168.17,0.1]
[1754495177404,85.29482461,168.18,168.17,0.1]
[1754495177897,78.66881439,168.18,168.17,0.1]
[1754495178203,36.16881439,168.18,168.17,0.1]
[1754495178579,42.79482461,168.18,168.17,0.1]
[1754495179679,36.16881439,168.18,168.17,0.1]
[1754495179902,36.16881439,168.18,168.17,0.82]
[1754495180392,36.16881439,168.18,168.17,0.1]
[1754495180578,36.16881439,168.18,168.17,0.82]
[1754495180898,32.1847816,168.18,168.17,0.82]
[1754495181087,36.16276958,168.18,168.17,0.82]
[1754495181487,26.0,168.18,168.17,0.82]
[1754495181687,36.16361047,168.18,168.17,0.82]
[1754495182007,6.1847816,168.19,168.17,15.92621557]
[1754495182296,6.1847816,168.21,168.18,0.72]
[1754495182999,3.98069971,168.22,168.18,0.72]
[1754495183000,6.1847816,168.2,168.18,0.72]
[1754495183297,6.1847816,168.19,168.17,0.1]
[1754495183496,6.1847816,168.19,168.18,0.72]
[1754495184580,6.1847816,168.19,168.17,0.1]
[1754495184780,6.1847816,168.18,168.17,0.1]
[1754495185634,3.98069971,168.2,168.17,0.82]
[1754495185802,3.98069971,168.22,168.2,15.10621557]
[1754495185978,3.98069971,168.22,168.2,21.29099717]
[1754495186173,68.5,168.26,168.2,21.29099717]
[1754495186174,10.16548131,168.25,168.21,0.72]
[1754495186388,10.16548131,168.25,168.22,15.10621557]
[1754495186594,6.1847816,168.24,168.19,12.13043829]
[1754495186789,6.1847816,168.24,168.2,15.82621557]
[1754495186993,6.1847816,168.24,168.21,0.72]
[1754495187294,6.1847816,168.25,168.22,0.72]
[1754495187507,6.1847816,168.24,168.22,0.72]
[1754495188114,6.1847816,168.25,168.2,6.1847816]
[1754495188301,10.16548131,168.26,168.23,0.72]
[1754495188490,10.16548131,168.26,168.24,0.72]
[1754495188805,3.98069971,168.26,168.24,0.72]
[1754495189006,10.16548131,168.26,168.24,0.72]
[1754495189415,3.98069971,168.26,168.22,15.10621557]
[1754495189604,3.98069971,168.26,168.25,0.72]
[1754495189800,181.9847816,168.27,168.25,0.72]
[1754495190104,175.8,168.27,168.25,0.72]
[1754495190306,4.97353609,168.32,168.27,41.39053871]
[1754495190488,9.82831456,168.4,168.32,15.39053871]
[1754495190694,10.16502439,168.39,168.34,15.10621557]
[1754495190890,10.16502439,168.38,168.34,0.72]
[1754495191097,3.98024279,168.37,168.34,0.72]
[1754495191421,6.1847816,168.37,168.31,15.10621557]
[1754495191615,6.1847816,168.36,168.32,1.00432314]
[1754495191915,10.59914944,168.39,168.32,0.72]
[1754495192125,3.98024279,168.38,168.32,1.00432314]
[1754495192430,10.16502439,168.39,168.35,15.10621557]
[1754495192595,3.98024279,168.39,168.37,21.29099717]
[1754495192790,10.16502439,168.42,168.37,21.29099717]
[1754495193014,6.1847816,168.41,168.37,15.77621557]
[1754495193620,6.1847816,168.4,168.35,6.8547816]
[1754495193921,6.8947816,168.4,168.36,15.10621557]
[1754495194232,6.1847816,168.37,168.32,15.10621557]
[1754495194385,6.1847816,168.36,168.3,47.29099717]
[1754495194582,6.1847816,168.34,168.32,15.10621557]
[1754495194827,6.1847816,168.33,168.31,0.67]
[1754495196033,3.98024279,168.36,168.33,15.10621557]
[1754495196185,6.1847816,168.39,168.35,15.10621557]
[1754495196384,3.96916856,168.39,168.36,0.67]
[1754495196611,3.99916856,168.41,168.37,0.67]
[1754495196911,0.03,168.41,168.37,10.55901659]
[1754495197896,10.59901659,168.4,168.35,24.99523216]
[1754495198100,10.59901659,168.4,168.35,25.66523216]
[1754495198302,10.59901659,168.4,168.33,57.70837757]
[1754495198303,9.88901659,168.37,168.33,15.106216]
[1754495198530,9.88901659,168.37,168.33,0.67]
[1754495198730,9.88901659,168.35,168.3,0.67]
[1754495199027,9.88901659,168.31,168.29,0.06]
[1754495199192,9.88901659,168.33,168.29,0.06]
[1754495199389,202.14901659,168.36,168.32,15.10621557]
[1754495199586,149.8,168.36,168.34,15.10621557]
[1754495199826,149.8,168.36,168.35,0.67]
[1754495200197,149.8,168.36,168.34,15.10621557]
[1754495200398,149.8,168.36,168.33,0.67]
[1754495200601,9.88901659,168.34,168.3,0.67]
[1754495200801,9.88901659,168.33,168.31,15.10621557]
[1754495201697,9.88901659,168.33,168.29,0.06]
[1754495202004,9.88901659,168.32,168.29,0.06]
[1754495202605,6.65008952,168.35,168.29,0.06]
[1754495202606,9.88901659,168.31,168.29,0.06]
[1754495202806,9.88901659,168.3,168.29,0.06]
[1754495203533,26.0,168.33,168.29,0.06]
[1754495203909,9.88901659,168.31,168.29,0.06]
[1754495204111,159.68901659,168.32,168.29,0.73]
[1754495204312,149.8,168.32,168.29,0.73]
[1754495204515,159.68901659,168.32,168.29,0.73]
[1754495205025,159.68901659,168.32,168.29,0.06]
[1754495205933,9.88901659,168.3,168.29,0.06]
[1754495206301,10.59901659,168.3,168.29,0.06]
[1754495207104,48.40076278,168.33,168.29,0.06]
[1754495207428,9.88901659,168.3,168.29,0.06]
[1754495208108,10.59901659,168.3,168.29,0.06]
[1754495208306,9.88901659,168.3,168.29,0.06]
[1754495209302,10.59901659,168.3,168.29,0.06]
[1754495209902,9.88901659,168.3,168.29,0.06]
[1754495210115,5.94142506,168.31,168.29,0.06]
[1754495210327,9.88901659,168.3,168.29,0.06]
[1754495210537,74.4011104,168.32,168.29,0.06]
[1754495210720,9.88901659,168.3,168.29,0.06]
[1754495211305,9.88901659,168.32,168.29,0.73]
[1754495211543,9.88901659,168.32,168.3,0.67]
[1754495211841,9.88901659,168.34,168.3,0.67]
[1754495212209,9.88901659,168.34,168.31,0.67]
[1754495212413,9.88901659,168.34,168.32,0.67]
[1754495212910,9.88901659,168.34,168.29,15.83621557]
[1754495213225,9.88901659,168.33,168.3,0.67]
[1754495213738,9.88901659,168.34,168.29,21.10833466]
[1754495213912,9.88901659,168.34,168.31,0.67]
[1754495214112,9.88901659,168.34,168.29,15.16621557]
[1754495214337,149.8,168.32,168.3,0.67]
[1754495215222,159.68901659,168.32,168.29,15.16621557]
[1754495215543,159.68901659,168.32,168.29,15.83621557]
[1754495215837,159.68901659,168.32,168.29,0.73]
[1754495216024,149.8,168.32,168.29,15.83621557]
[1754495216539,149.8,168.32,168.3,0.67]
[1754495216844,149.8,168.32,168.31,0.67]
[1754495217220,149.8,168.32,168.29,15.16621557]
[1754495217440,149.83,168.32,168.29,15.16621557]
[1754495217654,149.83,168.32,168.31,24.99523216]
[1754495217815,149.83,168.32,168.31,25.66523216]
[1754495219133,0.03,168.32,168.31,25.9495553]
[1754495219443,4.95528999,168.42,168.32,41.39053871]
[1754495219444,149.8,168.4,168.32,41.39053871]
[1754495219627,149.8,168.4,168.39,15.10621557]
[1754495220025,149.8,168.4,168.38,15.10621557]
[1754495220225,149.8,168.4,168.33,10.55901659]
[1754495220425,0.03,168.34,168.33,15.77621557]
[1754495221248,0.03,168.34,168.33,21.71692726]
[1754495221426,0.03,168.34,168.33,15.77621557]
[1754495221746,0.03,168.34,168.33,15.10621557]
[1754495223820,9.91901659,168.34,168.3,15.10621557]
[1754495224229,9.88901659,168.33,168.3,15.82621557]
[1754495224434,9.91901659,168.34,168.3,15.10621557]
[1754495224845,9.91901659,168.34,168.3,15.82621557]
[1754495225142,0.03,168.34,168.31,0.72]
[1754495225343,0.03,168.34,168.32,15.10621557]
[1754495225532,0.03,168.34,168.32,15.82621557]
[1754495225740,0.03,168.34,168.32,15.10621557]
[1754495226042,0.03,168.34,168.3,6.66163949]
[1754495226244,0.03,168.34,168.3,0.72]
[1754495226542,159.68901659,168.33,168.3,15.10621557]
[1754495226743,149.8,168.33,168.3,15.10621557]
[1754495226916,149.8,168.33,168.31,0.72]
[1754495227121,149.8,168.33,168.32,0.72]
[1754495227322,149.8,168.33,168.32,15.82621557]
[1754495227956,149.8,168.33,168.32,25.71523216]
[1754495228725,149.8,168.33,168.32,31.65629679]
[1754495230753,149.8,168.33,168.32,21.7672802]
[1754495231053,149.8,168.33,168.32,74.09629679]
[1754495231253,153.79134058,168.33,168.32,74.09629679]
[1754495232659,153.79134058,168.33,168.32,57.54621557]
[1754495233045,153.79134058,168.33,168.32,58.26621557]
[1754495233228,153.79134058,168.33,168.32,74.09629679]
[1754495233653,153.79134058,168.33,168.32,57.54621557]
[1754495233953,4.70134058,168.33,168.29,0.06]
[1754495234148,153.79134058,168.32,168.29,21.10824646]
[1754495234346,3.99134058,168.31,168.3,57.54621557]
[1754495236556,3.99134058,168.31,168.29,15.16621557]
[1754495236860,3.99134058,168.3,168.29,57.60621557]
[1754495237840,14.59035717,168.3,168.29,0.06]
[1754495238458,3.99134058,168.3,168.29,0.06]
[1754495239467,13.88035717,168.3,168.29,0.06]
[1754495239968,3.99134058,168.3,168.29,0.06]
[1754495240533,13.88035717,168.3,168.29,0.06]
[1754495240961,14.59035717,168.3,168.29,0.06]
[1754495242152,20.53212781,168.3,168.29,0.06]
[1754495243869,67.9274178,168.3,168.29,0.06]
[1754495245695,26.0,168.28,168.27,0.06]
[1754495245871,39.88035717,168.28,168.27,0.06]
[1754495246192,45.59242013,168.28,168.27,0.06]
[1754495246572,3.99134058,168.28,168.27,0.78]
[1754495246868,3.99134058,168.28,168.27,0.06]
[1754495248463,3.99134058,168.28,168.27,15.88621557]
[1754495248671,3.99134058,168.28,168.27,28.01819981]
[1754495248966,3.99134058,168.3,168.28,15.10621557]
[1754495249170,6.21915427,168.34,168.28,15.10621557]
[1754495249171,3.99134058,168.29,168.28,21.29536984]
[1754495249370,6.18915427,168.32,168.27,12.19198424]
[1754495249572,3.99134058,168.31,168.27,12.19198424]
[1754495249748,3.99134058,168.3,168.28,0.72]
[1754495249959,3.99134058,168.32,168.28,6.90915427]
[1754495250247,3.99134058,168.31,168.3,15.10621557]
[1754495250468,3.99134058,168.33,168.3,15.82621557]
[1754495250683,3.99134058,168.32,168.31,0.72]
[1754495250850,3.99134058,168.32,168.3,15.10621557]
[1754495251056,3.99134058,168.31,168.3,15.10621557]
[1754495252043,3.99134058,168.31,168.3,15.82621557]
[1754495252246,3.99134058,168.33,168.3,15.82621557]
[1754495252476,3.99134058,168.32,168.31,0.72]
[1754495252691,3.99134058,168.32,168.3,15.10621557]
[1754495252857,3.99134058,168.31,168.3,15.10621557]
[1754495253282,13.88792356,168.31,168.27,0.74]
[1754495253470,9.89658298,168.28,168.27,0.06]
[1754495253673,13.88792356,168.28,168.27,0.06]